[Event "Pobeskydi 2026"]
[Site "Frydek-Mistek, Czech Republic"]
[Date "2026.04.02"]
[Round "1.6"]
[White "Osina, Jaromir"]
[Black "Boff, Ondrej"]
[Result "1-0"]
[TimeControl "90 min+30s/move"]
[WhiteTitle "-"]
[BlackTitle "-"]
[WhiteFideId "23712759"]
[BlackFideId "23733950"]
[WhiteElo "1972"]
[BlackElo "2101"]

1. d4 {[%clk 01:30:56]} {[%emt 00:00:03]} Nf6 {[%clk 01:30:33]} {[%emt
00:00:28]} 2. c4 {[%clk 01:31:06]} {[%emt 00:00:21]} c5 {[%clk 01:30:37]}
{[%emt 00:00:26]} 3. d5 {[%clk 01:30:32]} {[%emt 00:01:04]} b5 {[%clk
01:30:21]} {[%emt 00:00:46]} 4. cxb5 {[%clk 01:27:36]} {[%emt 00:03:27]} a6
{[%clk 01:30:16]} {[%emt 00:00:34]} 5. b6 {[%clk 01:26:18]} {[%emt 00:01:48]}
e6 {[%clk 01:26:13]} {[%emt 00:04:32]} 6. Nc3 {[%clk 01:16:20]} {[%emt
00:10:29]} Bb7 {[%clk 01:23:59]} {[%emt 00:02:44]} 7. e4 {[%clk 01:11:09]}
{[%emt 00:05:40]} exd5 {[%clk 01:22:24]} {[%emt 00:02:05]} 8. exd5 {[%clk
01:07:26]} {[%emt 00:04:13]} Qxb6 {[%clk 01:19:41]} {[%emt 00:03:13]} 9. Bc4
{[%clk 01:04:43]} {[%emt 00:03:14]} Be7 {[%clk 01:17:18]} {[%emt 00:02:51]} 10.
Qe2 {[%clk 01:01:59]} {[%emt 00:03:16]} O-O {[%clk 01:13:49]} {[%emt 00:03:58]}
11. Nf3 {[%clk 00:56:40]} {[%emt 00:05:48]} d6 {[%clk 01:11:31]} {[%emt
00:02:49]} 12. O-O {[%clk 00:53:13]} {[%emt 00:03:58]} Re8 {[%clk 01:06:29]}
{[%emt 00:05:31]} 13. b3 {[%clk 00:45:45]} {[%emt 00:07:59]} Nbd7 {[%clk
01:04:40]} {[%emt 00:02:18]} 14. Bb2 {[%clk 00:44:30]} {[%emt 00:01:46]} Bf8
{[%clk 01:00:01]} {[%emt 00:05:09]} 15. Qc2 {[%clk 00:43:20]} {[%emt 00:01:40]}
g6 {[%clk 00:59:06]} {[%emt 00:01:24]} 16. Rfe1 {[%clk 00:40:28]} {[%emt
00:03:22]} Bg7 {[%clk 00:58:36]} {[%emt 00:01:00]} 17. h3 {[%clk 00:34:48]}
{[%emt 00:06:11]} Qc7 {[%clk 00:55:34]} {[%emt 00:03:30]} 18. Rad1 {[%clk
00:23:43]} {[%emt 00:11:37]} Nb6 {[%clk 00:53:29]} {[%emt 00:02:35]} 19. Kf1
{[%clk 00:18:04]} {[%emt 00:06:08]} Rxe1+ {[%clk 00:48:19]} {[%emt 00:05:40]}
20. Nxe1 {[%clk 00:15:43]} {[%emt 00:02:51]} Re8 {[%clk 00:48:05]} {[%emt
00:00:43]} 21. Qd2 {[%clk 00:15:22]} {[%emt 00:00:53]} Re7 {[%clk 00:45:41]}
{[%emt 00:02:53]} 22. Nc2 {[%clk 00:14:36]} {[%emt 00:01:16]} Nfd7 {[%clk
00:41:59]} {[%emt 00:04:12]} 23. Ne3 {[%clk 00:14:16]} {[%emt 00:00:51]} f5
{[%clk 00:40:10]} {[%emt 00:02:18]} 24. f4 {[%clk 00:13:27]} {[%emt 00:01:20]}
Nf6 {[%clk 00:39:15]} {[%emt 00:01:24]} 25. Kf2 {[%clk 00:11:54]} {[%emt
00:02:03]} Qd8 {[%clk 00:37:37]} {[%emt 00:02:08]} 26. g3 {[%clk 00:11:14]}
{[%emt 00:01:10]} Qe8 {[%clk 00:36:05]} {[%emt 00:02:01]} 27. Re1 {[%clk
00:10:37]} {[%emt 00:01:08]} Nh5 {[%clk 00:35:56]} {[%emt 00:00:39]} 28. Re2
{[%clk 00:08:52]} {[%emt 00:02:16]} Nd7 {[%clk 00:28:29]} {[%emt 00:07:56]} 29.
Nf1 {[%clk 00:04:31]} {[%emt 00:04:51]} Bd4+ {[%clk 00:28:27]} {[%emt
00:00:33]} 30. Kf3 {[%clk 00:03:58]} {[%emt 00:01:02]} Ndf6 {[%clk 00:27:33]}
{[%emt 00:01:24]} 31. Rxe7 {[%clk 00:02:52]} {[%emt 00:01:37]} Qxe7 {[%clk
00:27:55]} {[%emt 00:00:07]} 32. Qe2 {[%clk 00:02:52]} {[%emt 00:00:31]} Qxe2+
{[%clk 00:27:25]} {[%emt 00:01:00]} 33. Kxe2 {[%clk 00:02:53]} {[%emt
00:00:29]} Bxc3 {[%clk 00:26:38]} {[%emt 00:01:17]} 34. Bxc3 {[%clk 00:03:22]}
{[%emt 00:00:01]} Nxd5 {[%clk 00:26:56]} {[%emt 00:00:11]} 35. Ne3 {[%clk
00:02:56]} {[%emt 00:00:56]} Nxg3+ {[%clk 00:26:14]} {[%emt 00:01:12]} 36. Kf3
{[%clk 00:03:06]} {[%emt 00:00:19]} Ne4 {[%clk 00:25:58]} {[%emt 00:00:47]} 37.
Bxd5+ {[%clk 00:03:27]} {[%emt 00:00:10]} Bxd5 {[%clk 00:26:11]} {[%emt
00:00:17]} 38. Nxd5 {[%clk 00:03:55]} {[%emt 00:00:03]} Kf7 {[%clk 00:26:10]}
{[%emt 00:00:29]} 39. Ba5 {[%clk 00:03:44]} {[%emt 00:00:41]} Ke6 {[%clk
00:25:31]} {[%emt 00:01:09]} 40. Nc7+ {[%clk 00:04:00]} {[%emt 00:00:14]} Kd7
{[%clk 00:25:55]} {[%emt 00:00:07]} 41. Nxa6 {[%clk 00:03:35]} {[%emt
00:00:55]} Kc6 {[%clk 00:24:41]} {[%emt 00:01:43]} 42. Nc7 {[%clk 00:03:03]}
{[%emt 00:01:02]} d5 {[%clk 00:23:34]} {[%emt 00:01:37]} 43. Ne6 {[%clk
00:03:16]} {[%emt 00:00:17]} h6 {[%clk 00:17:37]} {[%emt 00:06:27]} 44. h4
{[%clk 00:03:43]} {[%emt 00:00:04]} d4 {[%clk 00:12:12]} {[%emt 00:05:55]} 45.
Nf8 {[%clk 00:03:17]} {[%emt 00:00:55]} Kb5 {[%clk 00:09:40]} {[%emt 00:03:02]}
46. Be1 {[%clk 00:03:41]} {[%emt 00:00:06]} g5 {[%clk 00:10:06]} {[%emt
00:00:05]} 47. fxg5 {[%clk 00:03:49]} {[%emt 00:00:22]} hxg5 {[%clk 00:10:24]}
{[%emt 00:00:12]} 48. h5 {[%clk 00:04:02]} {[%emt 00:00:17]} Nd6 {[%clk
00:09:38]} {[%emt 00:01:16]} 49. h6 {[%clk 00:03:56]} {[%emt 00:00:36]} Nf7
{[%clk 00:10:01]} {[%emt 00:00:07]} 50. h7 {[%clk 00:04:18]} {[%emt 00:00:08]}
Nh8 {[%clk 00:10:18]} {[%emt 00:00:12]} 51. a4+ {[%clk 00:04:29]} {[%emt
00:00:20]} Kc6 {[%clk 00:10:38]} {[%emt 00:00:10]} 52. Ne6 {[%clk 00:04:40]}
{[%emt 00:00:18]} Nf7 {[%clk 00:10:02]} {[%emt 00:01:05]} 53. Bd2 {[%clk
00:04:50]} {[%emt 00:00:20]} Kd5 {[%clk 00:09:42]} {[%emt 00:00:51]} 54. Nxg5
{[%clk 00:05:03]} {[%emt 00:00:17]} Nh8 {[%clk 00:10:06]} {[%emt 00:00:05]} 55.
Kf4 {[%clk 00:04:52]} {[%emt 00:00:42]} c4 {[%clk 00:10:17]} {[%emt 00:00:20]}
56. bxc4+ {[%clk 00:05:07]} {[%emt 00:00:14]} Kxc4 {[%clk 00:10:43]} {[%emt
00:00:05]} 57. Kxf5 {[%clk 00:05:33]} {[%emt 00:00:04]} 1-0

[Event "Pobeskydi 2026"]
[Site "Frydek-Mistek, Czech Republic"]
[Date "2026.04.02"]
[Round "1.7"]
[White "Buchtova, Viktorie"]
[Black "Kovacik, Oliver"]
[Result "1-0"]
[TimeControl "90 min+30s/move"]
[WhiteTitle "-"]
[BlackTitle "-"]
[WhiteFideId "23714786"]
[BlackFideId "2321963"]
[WhiteElo "2055"]
[BlackElo "1969"]

1. e4 {[%clk 01:30:57]} {[%emt 00:00:03]} c6 {[%clk 01:30:55]} {[%emt
00:00:06]} 2. d4 {[%clk 01:31:24]} {[%emt 00:00:03]} d5 {[%clk 01:31:21]}
{[%emt 00:00:04]} 3. Nc3 {[%clk 01:31:51]} {[%emt 00:00:04]} dxe4 {[%clk
01:31:47]} {[%emt 00:00:04]} 4. Nxe4 {[%clk 01:32:17]} {[%emt 00:00:04]} Nf6
{[%clk 01:32:10]} {[%emt 00:00:07]} 5. Nxf6+ {[%clk 01:32:40]} {[%emt
00:00:07]} exf6 {[%clk 01:32:33]} {[%emt 00:00:06]} 6. Be3 {[%clk 01:31:15]}
{[%emt 00:01:55]} Bd6 {[%clk 01:32:10]} {[%emt 00:00:53]} 7. Bd3 {[%clk
01:31:29]} {[%emt 00:00:16]} O-O {[%clk 01:30:17]} {[%emt 00:02:23]} 8. Ne2
{[%clk 01:31:41]} {[%emt 00:00:18]} Bg4 {[%clk 01:29:42]} {[%emt 00:01:04]} 9.
O-O {[%clk 01:29:29]} {[%emt 00:02:43]} Re8 {[%clk 01:27:38]} {[%emt 00:02:34]}
10. h3 {[%clk 01:20:17]} {[%emt 00:09:42]} Bh5 {[%clk 01:26:22]} {[%emt
00:01:46]} 11. c4 {[%clk 01:17:27]} {[%emt 00:03:20]} Bc7 {[%clk 01:22:17]}
{[%emt 00:04:35]} 12. Qd2 {[%clk 01:08:56]} {[%emt 00:09:02]} Na6 {[%clk
01:19:34]} {[%emt 00:03:12]} 13. a3 {[%clk 01:01:03]} {[%emt 00:08:23]} Bxe2
{[%clk 01:18:01]} {[%emt 00:02:02]} 14. Qxe2 {[%clk 00:59:30]} {[%emt
00:02:04]} Qd6 {[%clk 01:17:48]} {[%emt 00:00:42]} 15. g3 {[%clk 00:59:45]} Qe6
{[%clk 01:15:57]} {[%emt 00:02:37]} 16. Kh2 {[%clk 00:56:38]} Rad8 {[%clk
01:13:15]} {[%emt 00:06:49]} 17. Qf3 {[%clk 00:55:54]} Bb6 {[%clk 01:09:11]}
{[%emt 00:05:47]} 18. Rad1 {[%clk 00:55:11]} g6 {[%clk 00:54:03]} {[%emt
00:16:52]} 19. c5 {[%clk 00:48:37]} Bc7 {[%clk 00:54:16]} {[%emt 00:07:21]} 20.
Bxa6 {[%clk 00:47:46]} bxa6 {[%clk 00:54:16]} 21. Rfe1 {[%clk 00:47:46]} Kg7
{[%clk 00:50:36]} {[%emt 00:16:53]} 22. Bh6+ {[%clk 00:36:49]} Kxh6 {[%clk
00:50:36]} 23. Rxe6 {[%clk 00:36:49]} Rxe6 {[%clk 00:50:36]} 24. d5 {[%clk
00:36:49]} cxd5 {[%clk 00:50:36]} 25. Rxd5 {[%clk 00:36:49]} Rxd5 {[%clk
00:45:52]} {[%emt 00:09:14]} 26. Qxd5 {[%clk 00:37:23]} Re2 {[%clk 00:46:03]}
{[%emt 00:00:03]} 27. Qxf7 {[%clk 00:32:08]} Rxf2+ {[%clk 00:46:03]} 28. Kg1
{[%clk 00:32:08]} Bxg3 {[%clk 00:46:03]} 29. Qb3 {[%clk 00:32:08]} Bh4 {[%clk
00:46:03]} 30. c6 {[%clk 00:32:08]} Re2 {[%clk 00:46:03]} 31. c7 {[%clk
00:32:08]} Re1+ {[%clk 00:46:03]} 32. Kg2 {[%clk 00:32:08]} Re2+ {[%clk
00:46:03]} 33. Kf3 {[%clk 00:32:08]} Rf2+ {[%clk 00:46:03]} 34. Ke4 {[%clk
00:32:08]} f5+ {[%clk 00:46:03]} 35. Kd4 {[%clk 00:32:08]} Rd2+ {[%clk
00:46:03]} 36. Kc4 {[%clk 00:32:08]} Re2 {[%clk 00:46:03]} 37. c8=Q {[%clk
00:32:08]} Re4+ {[%clk 00:46:03]} 38. Kd5 {[%clk 00:32:08]} Bf2 {[%clk
00:46:03]} 39. Qc1+ {[%clk 00:32:08]} Be3 {[%clk 00:46:03]} 40. Qc8 {[%clk
00:31:37]} {[%emt 00:17:15]} Bf2 {[%clk 00:44:22]} {[%emt 00:02:29]} 41. Qc1+
{[%clk 00:30:48]} {[%emt 00:01:18]} Be3 {[%clk 00:44:10]} {[%emt 00:00:43]} 42.
Qbxe3+ {[%emt 00:00:21]} Rxe3 {[%clk 00:44:31]} {[%emt 00:00:02]} 43. Qxe3+
{[%clk 00:31:33]} {[%emt 00:00:02]} Kh5 {[%clk 00:44:55]} {[%emt 00:00:05]} 44.
Ke5 {[%clk 00:31:45]} {[%emt 00:00:18]} Kh4 {[%clk 00:44:56]} {[%emt 00:00:29]}
45. Kf6 {[%clk 00:31:28]} {[%emt 00:00:48]} h5 {[%clk 00:44:30]} {[%emt
00:00:56]} 46. Kxg6 {[%clk 00:31:47]} {[%emt 00:00:11]} a5 {[%clk 00:44:38]}
{[%emt 00:00:21]} 47. Qf4+ {[%clk 00:32:05]} {[%emt 00:00:12]} Kxh3 {[%clk
00:45:03]} {[%emt 00:00:05]} 48. Kxh5 {[%clk 00:32:30]} {[%emt 00:00:05]} a4
{[%clk 00:45:22]} {[%emt 00:00:11]} 49. Qf3+ {[%clk 00:32:54]} {[%emt
00:00:06]} Kh2 {[%clk 00:45:47]} {[%emt 00:00:05]} 50. Kh4 {[%clk 00:33:19]}
{[%emt 00:00:05]} a5 {[%clk 00:46:12]} {[%emt 00:00:05]} 51. Qf2+ {[%clk
00:33:43]} {[%emt 00:00:06]} Kh1 {[%clk 00:46:36]} {[%emt 00:00:06]} 52. Kh3
{[%clk 00:34:09]} {[%emt 00:00:04]} 1-0

[Event "Pobeskydi 2026"]
[Site "Frydek-Mistek, Czech Republic"]
[Date "2026.04.02"]
[Round "1.8"]
[White "Zidek, Damian"]
[Black "Durovka, Marek"]
[Result "1/2-1/2"]
[TimeControl "90 min+30s/move"]
[WhiteTitle "-"]
[BlackTitle "-"]
[WhiteFideId "23761652"]
[BlackFideId "14959542"]
[WhiteElo "1962"]
[BlackElo "2054"]

1. d4 {[%clk 01:30:58]} {[%emt 00:00:01]} d5 {[%clk 01:29:57]} {[%emt
00:00:54]} 2. c4 {[%clk 01:31:26]} {[%emt 00:00:12]} c6 {[%clk 01:30:21]}
{[%emt 00:00:06]} 3. Nf3 {[%clk 01:31:50]} {[%emt 00:00:06]} Nf6 {[%clk
01:30:26]} {[%emt 00:00:25]} 4. Nc3 {[%clk 01:31:04]} {[%emt 00:01:16]} e6
{[%clk 01:30:29]} {[%emt 00:00:27]} 5. Bg5 {[%clk 01:30:07]} {[%emt 00:01:27]}
Be7 {[%clk 01:25:42]} {[%emt 00:05:18]} 6. e3 {[%clk 01:30:28]} {[%emt
00:00:09]} O-O {[%clk 01:25:33]} {[%emt 00:00:39]} 7. Bd3 {[%clk 01:30:22]}
{[%emt 00:00:34]} h6 {[%clk 01:20:15]} {[%emt 00:05:50]} 8. Bh4 {[%clk
01:30:45]} {[%emt 00:00:07]} dxc4 {[%clk 01:19:45]} {[%emt 00:01:01]} 9. Bxc4
{[%clk 01:31:05]} {[%emt 00:00:09]} b5 {[%clk 01:17:52]} {[%emt 00:02:23]} 10.
Bd3 {[%clk 01:31:09]} {[%emt 00:00:26]} Bb7 {[%clk 01:14:36]} {[%emt 00:03:45]}
11. O-O {[%clk 01:30:44]} {[%emt 00:00:55]} b4 {[%clk 01:10:19]} {[%emt
00:04:48]} 12. Bxf6 {[%clk 01:28:50]} {[%emt 00:02:23]} Bxf6 {[%clk 01:10:18]}
{[%emt 00:00:32]} 13. Ne4 {[%clk 01:29:09]} {[%emt 00:00:11]} Be7 {[%clk
01:02:57]} {[%emt 00:07:50]} 14. Ne5 {[%clk 01:27:39]} {[%emt 00:02:01]} c5
{[%clk 00:46:20]} {[%emt 00:17:07]} 15. Nxc5 {[%clk 01:20:16]} {[%emt
00:07:52]} Bxc5 {[%clk 00:44:47]} {[%emt 00:02:04]} 16. dxc5 {[%clk 01:20:32]}
{[%emt 00:00:14]} Qg5 {[%clk 00:38:55]} {[%emt 00:06:22]} 17. Nf3 {[%clk
01:18:25]} {[%emt 00:02:35]} Qxc5 {[%clk 00:38:52]} {[%emt 00:00:35]} 18. Rc1
{[%clk 01:18:05]} {[%emt 00:00:49]} Qe7 {[%clk 00:34:46]} {[%emt 00:04:36]} 19.
Qe2 {[%clk 01:15:56]} {[%emt 00:02:36]} Nd7 {[%clk 00:19:49]} {[%emt 00:15:31]}
20. Rfd1 {[%clk 01:15:33]} {[%emt 00:00:52]} Nb6 {[%clk 00:16:32]} {[%emt
00:03:48]} 21. Nd2 {[%clk 01:11:11]} {[%emt 00:04:51]} Rac8 {[%clk 00:15:17]}
{[%emt 00:01:46]} 22. Be4 {[%clk 01:10:29]} {[%emt 00:01:10]} Nd5 {[%clk
00:13:14]} {[%emt 00:02:35]} 23. Bf3 {[%clk 01:08:58]} {[%emt 00:02:00]} Rfd8
{[%clk 00:11:25]} {[%emt 00:02:20]} 24. h3 {[%clk 01:07:26]} {[%emt 00:02:02]}
Rc7 {[%clk 00:08:42]} {[%emt 00:03:14]} 25. Rxc7 {[%clk 00:59:12]} {[%emt
00:08:44]} Qxc7 {[%clk 00:09:07]} {[%emt 00:00:05]} 26. Nb3 {[%clk 00:59:15]}
{[%emt 00:00:25]} Rd6 {[%clk 00:03:41]} {[%emt 00:05:58]} 27. Rc1 {[%clk
00:54:36]} {[%emt 00:05:08]} Rc6 {[%clk 00:02:18]} {[%emt 00:01:54]} 28. Rxc6
{[%clk 00:54:40]} {[%emt 00:00:26]} Qxc6 {[%clk 00:02:46]} {[%emt 00:00:01]} 29.
Na5 {[%clk 00:54:32]} {[%emt 00:00:38]} Qc1+ {[%clk 00:01:46]} {[%emt
00:01:31]} 30. Qf1 {[%clk 00:46:18]} {[%emt 00:08:43]} Qxb2 {[%clk 00:00:33]}
{[%emt 00:01:44]} 31. Nxb7 {[%clk 00:44:49]} {[%emt 00:01:59]} Qxa2 {[%clk
00:00:40]} {[%emt 00:00:23]} 32. Bd1 {[%clk 00:44:07]} {[%emt 00:01:11]} Nc3
{[%clk 00:00:35]} {[%emt 00:00:35]} 33. Nc5 {[%clk 00:41:45]} {[%emt 00:02:52]}
Qa1 {[%clk 00:00:36]} {[%emt 00:00:27]} 34. Bg4 {[%clk 00:36:17]} {[%emt
00:06:00]} Qa2 {[%clk 00:00:34]} {[%emt 00:00:32]} 35. Qd3 {[%clk 00:25:57]}
{[%emt 00:10:50]} b3 {[%clk 00:00:47]} {[%emt 00:00:17]} 36. Qd8+ {[%clk
00:24:04]} {[%emt 00:02:22]} Kh7 {[%clk 00:01:16]} {[%emt 00:00:02]} 37. Qd3+
{[%clk 00:24:25]} {[%emt 00:00:09]} Kg8 {[%clk 00:00:34]} {[%emt 00:01:13]} 38.
Qd8+ {[%clk 00:23:55]} {[%emt 00:00:59]} Kh7 {[%clk 00:01:02]} {[%emt
00:00:02]} 39. Nxe6 {[%clk 00:15:38]} {[%emt 00:08:47]} b2 {[%clk 00:00:33]}
{[%emt 00:00:59]} 40. Nf8+ {[%clk 00:14:39]} {[%emt 00:01:29]} Kg8 {[%clk
00:00:36]} {[%emt 00:00:27]} 41. Ng6+ {[%clk 00:06:41]} {[%emt 00:08:29]} Kh7
{[%clk 00:00:59]} {[%emt 00:00:06]} 42. Nf8+ {[%clk 00:06:03]} {[%emt
00:01:08]} 1/2-1/2

[Event "Pobeskydi 2026"]
[Site "Frydek-Mistek, Czech Republic"]
[Date "2026.04.02"]
[Round "1.9"]
[White "Lichorad, Mateusz"]
[Black "Lee, Yuk Hei"]
[Result "1-0"]
[TimeControl "90 min+30s/move"]
[WhiteTitle "-"]
[BlackTitle "-"]
[WhiteFideId "21817693"]
[BlackFideId "343411061"]
[WhiteElo "2039"]
[BlackElo "1960"]

1. e4 {[%clk 01:30:56]} {[%emt 00:00:03]} e6 {[%clk 01:30:53]} {[%emt
00:00:09]} 2. d4 {[%clk 01:31:17]} {[%emt 00:00:08]} d5 {[%clk 01:31:16]}
{[%emt 00:00:07]} 3. Nc3 {[%clk 01:30:11]} {[%emt 00:01:35]} dxe4 {[%clk
01:31:06]} {[%emt 00:00:41]} 4. Nxe4 {[%clk 01:30:39]} {[%emt 00:00:02]} Nd7
{[%clk 01:31:30]} {[%emt 00:00:06]} 5. Nf3 {[%clk 01:29:08]} {[%emt 00:02:01]}
Ngf6 {[%clk 01:30:53]} {[%emt 00:01:06]} 6. Bg5 {[%clk 01:26:00]} {[%emt
00:03:39]} Be7 {[%clk 01:29:42]} {[%emt 00:01:41]} 7. Bxf6 {[%clk 01:25:32]}
{[%emt 00:00:57]} Nxf6 {[%clk 01:29:51]} {[%emt 00:00:21]} 8. Bd3 {[%clk
01:22:15]} {[%emt 00:03:47]} b6 {[%clk 01:24:47]} {[%emt 00:05:35]} 9. Nxf6+
{[%clk 01:18:30]} {[%emt 00:04:14]} Bxf6 {[%clk 01:25:07]} {[%emt 00:00:11]} 10.
Be4 {[%clk 01:18:38]} {[%emt 00:00:22]} Rb8 {[%clk 01:25:09]} {[%emt 00:00:29]}
11. Qd3 {[%clk 01:15:36]} {[%emt 00:03:31]} c5 {[%clk 01:18:43]} {[%emt
00:06:56]} 12. O-O-O {[%clk 01:11:46]} {[%emt 00:04:21]} Qc7 {[%clk 01:09:36]}
{[%emt 00:09:36]} 13. Ne5 {[%clk 01:00:58]} {[%emt 00:11:18]} Bxe5 {[%clk
01:01:16]} {[%emt 00:08:51]} 14. dxe5 {[%clk 01:01:23]} {[%emt 00:00:05]} Bd7
{[%clk 01:00:10]} {[%emt 00:01:36]} 15. Qg3 {[%clk 00:59:44]} {[%emt 00:02:08]}
O-O {[%clk 00:56:26]} {[%emt 00:04:14]} 16. Rd6 {[%clk 00:54:43]} {[%emt
00:05:32]} c4 {[%clk 00:52:00]} {[%emt 00:04:56]} 17. Qh4 {[%clk 00:52:46]}
{[%emt 00:02:26]} f5 {[%clk 00:50:00]} {[%emt 00:02:30]} 18. exf6 {[%clk
00:52:55]} {[%emt 00:00:21]} Rxf6 {[%clk 00:47:40]} {[%emt 00:02:50]} 19. Rhd1
{[%clk 00:51:19]} {[%emt 00:02:06]} Be8 {[%clk 00:45:32]} {[%emt 00:02:38]} 20.
Qxh7+ {[%clk 00:51:22]} {[%emt 00:00:26]} Kf7 {[%clk 00:44:47]} {[%emt
00:01:16]} 21. Qh5+ {[%clk 00:48:04]} {[%emt 00:03:48]} Kg8 {[%clk 00:44:58]}
{[%emt 00:00:19]} 22. Qe5 {[%clk 00:46:46]} {[%emt 00:01:48]} Rc8 {[%clk
00:40:22]} {[%emt 00:05:06]} 23. f3 {[%clk 00:41:10]} {[%emt 00:06:06]} Qe7
{[%clk 00:35:37]} {[%emt 00:05:14]} 24. c3 {[%clk 00:29:56]} {[%emt 00:11:45]}
b5 {[%clk 00:32:09]} {[%emt 00:03:58]} 25. Qd4 {[%clk 00:26:16]} {[%emt
00:04:10]} e5 {[%clk 00:28:10]} {[%emt 00:04:29]} 26. Qd5+ {[%clk 00:22:55]}
{[%emt 00:03:50]} Kh8 {[%clk 00:26:27]} {[%emt 00:02:14]} 27. Rd8 {[%clk
00:20:18]} {[%emt 00:03:07]} Rxd8 {[%clk 00:25:50]} {[%emt 00:01:07]} 28. Qxd8
{[%clk 00:20:46]} {[%emt 00:00:02]} Qf8 {[%clk 00:24:49]} {[%emt 00:01:31]} 29.
Qc8 {[%clk 00:19:38]} {[%emt 00:01:38]} Qe7 {[%clk 00:23:45]} {[%emt 00:01:34]}
30. Rd8 {[%clk 00:16:21]} {[%emt 00:03:46]} Rf8 {[%clk 00:24:05]} {[%emt
00:00:09]} 31. Qh3+ {[%clk 00:13:49]} {[%emt 00:03:04]} Kg8 {[%clk 00:24:28]}
{[%emt 00:00:07]} 32. Bd5+ {[%clk 00:12:00]} {[%emt 00:02:19]} Bf7 {[%clk
00:24:53]} {[%emt 00:00:05]} 33. Bxf7+ {[%clk 00:11:58]} {[%emt 00:00:32]} Qxf7
{[%clk 00:25:09]} {[%emt 00:00:14]} 34. Rxf8+ {[%clk 00:12:13]} {[%emt
00:00:14]} Qxf8 {[%clk 00:25:19]} {[%emt 00:00:20]} 35. Qe6+ {[%clk 00:12:37]}
{[%emt 00:00:06]} Kh8 {[%clk 00:25:29]} {[%emt 00:00:21]} 36. Qxe5 {[%clk
00:12:37]} {[%emt 00:00:31]} Qf7 {[%clk 00:25:00]} {[%emt 00:00:58]} 37. h4
{[%clk 00:10:41]} {[%emt 00:02:26]} Qd7 {[%clk 00:24:20]} {[%emt 00:01:10]} 38.
h5 {[%clk 00:10:12]} {[%emt 00:00:58]} Qc6 {[%clk 00:22:15]} {[%emt 00:02:36]}
39. Kd1 {[%clk 00:08:58]} {[%emt 00:01:44]} Kg8 {[%clk 00:22:02]} {[%emt
00:00:43]} 40. Ke1 {[%clk 00:09:03]} {[%emt 00:00:25]} Qd7 {[%clk 00:22:10]}
{[%emt 00:00:22]} 41. Kf2 {[%clk 00:08:09]} {[%emt 00:01:22]} Qd1 {[%clk
00:22:08]} {[%emt 00:00:34]} 42. Qe8+ {[%clk 00:08:06]} {[%emt 00:00:32]} Kh7
{[%clk 00:22:33]} {[%emt 00:00:06]} 43. Qxb5 {[%clk 00:08:07]} {[%emt
00:00:29]} Qd2+ {[%clk 00:22:40]} {[%emt 00:00:22]} 44. Kg3 {[%clk 00:08:29]}
{[%emt 00:00:07]} Qd6+ {[%clk 00:22:30]} {[%emt 00:00:42]} 45. Kg4 {[%clk
00:08:25]} {[%emt 00:00:33]} Kh8 {[%clk 00:21:29]} {[%emt 00:01:31]} 46. Qe8+
{[%clk 00:08:48]} {[%emt 00:00:07]} Kh7 {[%clk 00:21:54]} {[%emt 00:00:05]} 47.
Qg6+ {[%clk 00:09:16]} {[%emt 00:00:02]} Qxg6+ {[%clk 00:22:12]} {[%emt
00:00:12]} 48. hxg6+ {[%clk 00:09:44]} {[%emt 00:00:02]} 1-0